[Event "*** Titled Tuesday Blitz"]
[Site "Chess.com"]
[Date "2018.11.06"]
[Round "2"]
[White "sandager"]
[Black "narutosmith"]
[Result "1-0"]
[WhiteElo "2124"]
[BlackElo "2203"]
[TimeControl "180+2"]
[EndTime "13:17:34 PST"]
[Termination "sandager won by checkmate"]

1. e4 {[%clk 0:03:01.9]} 1... c5 {[%clk 0:02:59.9]} 2. Nf3 {[%clk 0:03:02.2]}
2... e6 {[%clk 0:03:01]} 3. d4 {[%clk 0:03:03.3]} 3... cxd4 {[%clk 0:03:02.9]}
4. Nxd4 {[%clk 0:03:03.8]} 4... Nc6 {[%clk 0:03:04.8]} 5. Nc3 {[%clk 0:03:03.3]}
5... Qc7 {[%clk 0:03:06.1]} 6. Be3 {[%clk 0:03:03.5]} 6... a6 {[%clk 0:03:07.1]}
7. Be2 {[%clk 0:03:04.2]} 7... Nf6 {[%clk 0:03:06.5]} 8. O-O {[%clk 0:03:05.2]}
8... h5 {[%clk 0:03:07.3]} 9. f4 {[%clk 0:02:49.4]} 9... d6 {[%clk 0:03:07]} 10.
Bf3 {[%clk 0:02:48.3]} 10... Bd7 {[%clk 0:03:07.1]} 11. Qe2 {[%clk 0:02:46.2]}
11... Rc8 {[%clk 0:02:49]} 12. Rad1 {[%clk 0:02:44.4]} 12... Ng4 {[%clk
0:02:37.1]} 13. Bxg4 {[%clk 0:02:31.8]} 13... hxg4 {[%clk 0:02:37.3]} 14. Nxc6
{[%clk 0:02:13.4]} 14... Bxc6 {[%clk 0:02:25.8]} 15. Qxg4 {[%clk 0:02:13.1]}
15... b5 {[%clk 0:02:26.5]} 16. a3 {[%clk 0:02:10.4]} 16... Qb7 {[%clk
0:02:25.3]} 17. f5 {[%clk 0:02:05.6]} 17... e5 {[%clk 0:02:10.4]} 18. f6 {[%clk
0:01:23.8]} 18... g6 {[%clk 0:02:08.3]} 19. Rd2 {[%clk 0:01:16.4]} 19... b4
{[%clk 0:02:01.1]} 20. Nd5 {[%clk 0:01:13.4]} 20... Bxd5 {[%clk 0:01:58.6]} 21.
exd5 {[%clk 0:01:13.6]} 21... bxa3 {[%clk 0:01:55.1]} 22. bxa3 {[%clk
0:01:13.9]} 22... Qb5 {[%clk 0:01:54.4]} 23. Qxc8# {[%clk 0:01:11.4]} 1-0

[Event "*** Titled Tuesday Blitz"]
[Site "Chess.com"]
[Date "2018.11.06"]
[Round "2"]
[White "ShadyH9"]
[Black "Ramosha"]
[Result "0-1"]
[WhiteElo "2279"]
[BlackElo "2471"]
[TimeControl "180+2"]
[EndTime "13:17:35 PST"]
[Termination "Ramosha won by resignation"]

1. d4 {[%clk 0:03:01.9]} 1... e6 {[%clk 0:02:56.6]} 2. c4 {[%clk 0:03:02.1]}
2... d5 {[%clk 0:02:55.1]} 3. Nf3 {[%clk 0:03:02.5]} 3... Nf6 {[%clk 0:02:52.8]}
4. g3 {[%clk 0:03:03.5]} 4... Be7 {[%clk 0:02:49.7]} 5. Bg2 {[%clk 0:03:03.9]}
5... O-O {[%clk 0:02:50.4]} 6. Nc3 {[%clk 0:03:03.3]} 6... dxc4 {[%clk
0:02:50.6]} 7. Ne5 {[%clk 0:03:04.1]} 7... Nc6 {[%clk 0:02:47.8]} 8. Bxc6 {[%clk
0:03:04]} 8... bxc6 {[%clk 0:02:49.7]} 9. Nxc6 {[%clk 0:03:05.5]} 9... Qe8
{[%clk 0:02:47.7]} 10. Nxe7+ {[%clk 0:03:06.8]} 10... Qxe7 {[%clk 0:02:48.6]}
11. Qa4 {[%clk 0:03:08.4]} 11... c5 {[%clk 0:02:47.5]} 12. dxc5 {[%clk
0:03:05.1]} 12... Qxc5 {[%clk 0:02:44.9]} 13. Be3 {[%clk 0:03:05.7]} 13... Qc7
{[%clk 0:02:36.7]} 14. O-O-O {[%clk 0:03:06.3]} 14... Bd7 {[%clk 0:02:33.2]} 15.
Qa3 {[%clk 0:03:00.2]} 15... Bc6 {[%clk 0:02:30.2]} 16. f3 {[%clk 0:02:57.1]}
16... Nd5 {[%clk 0:02:29.8]} 17. Bd4 {[%clk 0:02:42.4]} 17... Rfd8 {[%clk
0:02:15.4]} 18. Nxd5 {[%clk 0:02:33.3]} 18... Rxd5 {[%clk 0:02:13.4]} 19. Bc3
{[%clk 0:02:00.4]} 19... Rad8 {[%clk 0:02:12.4]} 20. Rxd5 {[%clk 0:01:45.7]}
20... Rxd5 {[%clk 0:02:14.3]} 21. Rd1 {[%clk 0:01:44.2]} 21... Rxd1+ {[%clk
0:02:15]} 22. Kxd1 {[%clk 0:01:45.4]} 22... Qb6 {[%clk 0:01:56.2]} 23. Qd6
{[%clk 0:01:27]} 23... Ba4+ {[%clk 0:01:56.4]} 0-1

[Event "*** Titled Tuesday Blitz"]
[Site "Chess.com"]
[Date "2018.11.06"]
[Round "2"]
[White "xavielhumilde_1999"]
[Black "Supernotar"]
[Result "1-0"]
[WhiteElo "2269"]
[BlackElo "2351"]
[TimeControl "180+2"]
[EndTime "13:17:43 PST"]
[Termination "xavielhumilde_1999 won by resignation"]

1. e4 {[%clk 0:03:01.9]} 1... c6 {[%clk 0:03:00.8]} 2. d4 {[%clk 0:03:02.7]}
2... d5 {[%clk 0:03:01.6]} 3. e5 {[%clk 0:03:03.5]} 3... Bf5 {[%clk 0:03:02.2]}
4. Nf3 {[%clk 0:03:03.8]} 4... e6 {[%clk 0:03:03.1]} 5. Be2 {[%clk 0:03:03.6]}
5... Nd7 {[%clk 0:03:03.5]} 6. O-O {[%clk 0:03:04.5]} 6... h6 {[%clk 0:03:04.5]}
7. Nbd2 {[%clk 0:03:02.6]} 7... Ne7 {[%clk 0:03:03.1]} 8. Nb3 {[%clk 0:03:00.1]}
8... Qc7 {[%clk 0:03:03.8]} 9. a4 {[%clk 0:02:41.8]} 9... g5 {[%clk 0:03:03.4]}
10. Ne1 {[%clk 0:02:41.4]} 10... Bg7 {[%clk 0:03:02.2]} 11. f4 {[%clk
0:02:39.3]} 11... O-O-O {[%clk 0:02:49.5]} 12. Nd3 {[%clk 0:02:37.1]} 12... f6
{[%clk 0:02:49.5]} 13. Ndc5 {[%clk 0:02:34.8]} 13... Nxc5 {[%clk 0:02:48.1]} 14.
Nxc5 {[%clk 0:02:35.6]} 14... gxf4 {[%clk 0:02:48.1]} 15. exf6 {[%clk
0:02:30.1]} 15... Bxf6 {[%clk 0:02:45.2]} 16. Bxf4 {[%clk 0:02:31.6]} 16... e5
{[%clk 0:02:44.5]} 17. Bg3 {[%clk 0:02:29.7]} 17... Rhg8 {[%clk 0:02:35.7]} 18.
a5 {[%clk 0:02:16.7]} 18... Rxg3 {[%clk 0:02:31.8]} 19. hxg3 {[%clk 0:02:17.4]}
19... exd4 {[%clk 0:02:33.1]} 20. Bg4 {[%clk 0:02:15.7]} 20... Bg5 {[%clk
0:01:36.4]} 21. Bxf5+ {[%clk 0:02:07.7]} 21... Nxf5 {[%clk 0:01:37.5]} 22. Rxf5
{[%clk 0:02:09.3]} 22... Be3+ {[%clk 0:01:38.5]} 23. Kh2 {[%clk 0:02:07.7]}
23... Rg8 {[%clk 0:01:38]} 24. Qf3 {[%clk 0:02:06.1]} 24... Qe7 {[%clk
0:01:30.5]} 25. b4 {[%clk 0:01:59.5]} 25... Rg5 {[%clk 0:01:24.5]} 26. Rf8+
{[%clk 0:01:57.7]} 26... Kc7 {[%clk 0:01:23.8]} 27. Rf7 {[%clk 0:01:59.1]} 27...
Kd8 {[%clk 0:01:20.8]} 28. Rxe7 {[%clk 0:01:59.5]} 28... Kxe7 {[%clk 0:01:21.7]}
29. Rf1 {[%clk 0:02:00.5]} 1-0

[Event "*** Titled Tuesday Blitz"]
[Site "Chess.com"]
[Date "2018.11.06"]
[Round "2"]
[White "Kouzari"]
[Black "Caminator2000"]
[Result "1-0"]
[WhiteElo "2574"]
[BlackElo "2300"]
[TimeControl "180+2"]
[EndTime "13:18:14 PST"]
[Termination "Kouzari won by resignation"]

1. d4 {[%clk 0:03:01.9]} 1... b5 {[%clk 0:03:00]} 2. e4 {[%clk 0:02:53.3]} 2...
a6 {[%clk 0:02:59.5]} 3. a4 {[%clk 0:02:53.8]} 3... Bb7 {[%clk 0:02:59.6]} 4.
Nd2 {[%clk 0:02:53.4]} 4... b4 {[%clk 0:03:00]} 5. Bd3 {[%clk 0:02:53.2]} 5...
e6 {[%clk 0:03:00.4]} 6. Ngf3 {[%clk 0:02:54.5]} 6... Nf6 {[%clk 0:03:00.2]} 7.
O-O {[%clk 0:02:55.4]} 7... d5 {[%clk 0:03:00.6]} 8. e5 {[%clk 0:02:56.9]} 8...
Nfd7 {[%clk 0:03:01.7]} 9. Re1 {[%clk 0:02:56.5]} 9... c5 {[%clk 0:03:01.4]} 10.
c3 {[%clk 0:02:58]} 10... c4 {[%clk 0:02:59.5]} 11. Bb1 {[%clk 0:02:58.3]} 11...
Nc6 {[%clk 0:02:59.8]} 12. Nf1 {[%clk 0:02:58.1]} 12... Be7 {[%clk 0:02:49.4]}
13. Ng3 {[%clk 0:02:54.1]} 13... bxc3 {[%clk 0:02:41.7]} 14. bxc3 {[%clk
0:02:54.4]} 14... Qc7 {[%clk 0:02:43.6]} 15. Ng5 {[%clk 0:02:53.5]} 15... h6
{[%clk 0:02:17.3]} 16. Nh3 {[%clk 0:02:40]} 16... Na5 {[%clk 0:02:09.9]} 17. Nh5
{[%clk 0:02:35.6]} 17... g6 {[%clk 0:02:04.1]} 18. N5f4 {[%clk 0:02:34.1]} 18...
O-O-O {[%clk 0:02:01]} 19. Bxg6 {[%clk 0:02:34.1]} 19... fxg6 {[%clk 0:01:45.1]}
20. Nxe6 {[%clk 0:02:34.6]} 20... Qc6 {[%clk 0:01:43.8]} 21. Nxd8 {[%clk
0:02:35.5]} 21... Bxd8 {[%clk 0:01:45.4]} 22. Nf4 {[%clk 0:02:20.1]} 22... g5
{[%clk 0:01:37]} 23. Nh5 {[%clk 0:02:14.4]} 23... Nb3 {[%clk 0:01:09]} 24. Ra2
{[%clk 0:02:14.6]} 24... Nf8 {[%clk 0:01:09.5]} 25. Ba3 {[%clk 0:02:10.5]} 25...
Ne6 {[%clk 0:00:44.2]} 26. Qg4 {[%clk 0:02:10.4]} 26... Kb8 {[%clk 0:00:41.4]}
27. Bd6+ {[%clk 0:02:10]} 27... Ka7 {[%clk 0:00:41.2]} 28. Qxe6 {[%clk
0:02:08.9]} 1-0

[Event "*** Titled Tuesday Blitz"]
[Site "Chess.com"]
[Date "2018.11.06"]
[Round "2"]
[White "2Tilted"]
[Black "Oneofmyturns"]
[Result "1-0"]
[WhiteElo "2418"]
[BlackElo "2503"]
[TimeControl "180+2"]
[EndTime "13:18:21 PST"]
[Termination "2Tilted won by resignation"]

1. d4 {[%clk 0:03:01.9]} 1... Nf6 {[%clk 0:03:00.7]} 2. c4 {[%clk 0:03:01.2]}
2... g6 {[%clk 0:03:01.6]} 3. Nc3 {[%clk 0:03:01.7]} 3... d5 {[%clk 0:03:02.6]}
4. Nf3 {[%clk 0:03:02.5]} 4... Bg7 {[%clk 0:03:03.2]} 5. Qb3 {[%clk 0:03:03.6]}
5... dxc4 {[%clk 0:03:03.4]} 6. Qxc4 {[%clk 0:03:05.5]} 6... a6 {[%clk
0:03:00.5]} 7. e4 {[%clk 0:03:06.1]} 7... O-O {[%clk 0:02:56.5]} 8. e5 {[%clk
0:03:04.1]} 8... b5 {[%clk 0:02:55.9]} 9. Qb3 {[%clk 0:03:04.1]} 9... Nfd7
{[%clk 0:02:57.1]} 10. e6 {[%clk 0:03:05.1]} 10... fxe6 {[%clk 0:02:59]} 11. Be3
{[%clk 0:03:05.1]} 11... Nb6 {[%clk 0:02:57.5]} 12. h4 {[%clk 0:03:05.3]} 12...
c5 {[%clk 0:02:47]} 13. dxc5 {[%clk 0:03:02.9]} 13... Nd5 {[%clk 0:02:45.3]} 14.
Rd1 {[%clk 0:03:01.2]} 14... Bb7 {[%clk 0:02:44.9]} 15. h5 {[%clk 0:02:59.6]}
15... Qe8 {[%clk 0:02:27.7]} 16. Nxd5 {[%clk 0:02:53.4]} 16... exd5 {[%clk
0:02:28.4]} 17. Rxd5 {[%clk 0:02:51.4]} 17... e6 {[%clk 0:02:28.1]} 18. Rd6
{[%clk 0:02:42.8]} 18... Kh8 {[%clk 0:02:02.1]} 19. Rxe6 {[%clk 0:02:36.1]}
19... Qd7 {[%clk 0:02:03.4]} 20. Rd6 {[%clk 0:02:03.3]} 20... Qe8 {[%clk
0:01:52.9]} 21. hxg6 {[%clk 0:02:03.4]} 21... h6 {[%clk 0:01:32.3]} 22. Be2
{[%clk 0:02:02]} 22... Bxf3 {[%clk 0:00:51]} 23. gxf3 {[%clk 0:01:55.3]} 23...
Qe5 {[%clk 0:00:30.5]} 24. Bxh6 {[%clk 0:01:49.8]} 24... Bxh6 {[%clk 0:00:30.4]}
25. Rxh6+ {[%clk 0:01:49.9]} 1-0

[Event "*** Titled Tuesday Blitz"]
[Site "Chess.com"]
[Date "2018.11.06"]
[Round "2"]
[White "mishanick"]
[Black "chessdjw"]
[Result "1-0"]
[WhiteElo "2925"]
[BlackElo "2585"]
[TimeControl "180+2"]
[EndTime "13:18:25 PST"]
[Termination "mishanick won by resignation"]

1. d4 {[%clk 0:03:01.9]} 1... Nf6 {[%clk 0:03:00.7]} 2. c4 {[%clk 0:03:03.1]}
2... e6 {[%clk 0:03:02.1]} 3. Nf3 {[%clk 0:03:04.4]} 3... d5 {[%clk 0:03:03.3]}
4. Nc3 {[%clk 0:03:05.7]} 4... Bb4 {[%clk 0:03:04.4]} 5. Bg5 {[%clk 0:03:06.5]}
5... h6 {[%clk 0:03:05]} 6. Bxf6 {[%clk 0:03:07.6]} 6... Qxf6 {[%clk 0:03:06.9]}
7. e3 {[%clk 0:03:08.9]} 7... O-O {[%clk 0:03:06.2]} 8. Rc1 {[%clk 0:03:09.7]}
8... dxc4 {[%clk 0:03:07.6]} 9. Bxc4 {[%clk 0:03:10.2]} 9... c5 {[%clk
0:03:08.5]} 10. O-O {[%clk 0:03:11.6]} 10... cxd4 {[%clk 0:03:07.5]} 11. Ne4
{[%clk 0:03:13.1]} 11... Qe7 {[%clk 0:03:07.4]} 12. a3 {[%clk 0:03:13.5]} 12...
Ba5 {[%clk 0:03:08.2]} 13. Qxd4 {[%clk 0:03:15]} 13... Rd8 {[%clk 0:03:08.5]}
14. Qe5 {[%clk 0:03:15.7]} 14... Bb6 {[%clk 0:03:05.4]} 15. Qh5 {[%clk
0:03:16.3]} 15... Nd7 {[%clk 0:03:05.7]} 16. Rfd1 {[%clk 0:03:15.1]} 16... Nf6
{[%clk 0:03:01.1]} 17. Qh4 {[%clk 0:03:15.7]} 17... Bd7 {[%clk 0:02:41.9]} 18.
Ne5 {[%clk 0:03:08.3]} 18... Ba4 {[%clk 0:02:33.9]} 19. b3 {[%clk 0:02:48.6]}
19... Be8 {[%clk 0:02:34.5]} 20. Ng4 {[%clk 0:02:10]} 20... Nd5 {[%clk
0:02:10.2]} 21. Nxh6+ {[%clk 0:01:44.1]} 21... gxh6 {[%clk 0:02:04.9]} 22. Qxh6
{[%clk 0:01:46]} 22... Qf8 {[%clk 0:00:52]} 23. Qh4 {[%clk 0:01:46.9]} 23... Qg7
{[%clk 0:00:39.5]} 24. Bxd5 {[%clk 0:01:46.9]} 24... exd5 {[%clk 0:00:41.4]} 25.
Nf6+ {[%clk 0:01:47.8]} 25... Kf8 {[%clk 0:00:42.7]} 26. Qb4+ {[%clk 0:01:47.7]}
1-0

[Event "*** Titled Tuesday Blitz"]
[Site "Chess.com"]
[Date "2018.11.06"]
[Round "2"]
[White "Alohamora11"]
[Black "moro182"]
[Result "0-1"]
[WhiteElo "2308"]
[BlackElo "2723"]
[TimeControl "180+2"]
[EndTime "13:18:29 PST"]
[Termination "moro182 won by resignation"]

1. e4 {[%clk 0:02:55.6]} 1... e5 {[%clk 0:02:51.8]} 2. Nf3 {[%clk 0:02:55.9]}
2... Nc6 {[%clk 0:02:53.3]} 3. d4 {[%clk 0:02:55.8]} 3... exd4 {[%clk
0:02:54.2]} 4. Nxd4 {[%clk 0:02:57.7]} 4... Bc5 {[%clk 0:02:55.6]} 5. Nb3 {[%clk
0:02:59.3]} 5... Bb6 {[%clk 0:02:56.5]} 6. Nc3 {[%clk 0:03:01]} 6... Nf6 {[%clk
0:02:57.7]} 7. Qe2 {[%clk 0:03:02.2]} 7... O-O {[%clk 0:02:58.4]} 8. Be3 {[%clk
0:03:03.5]} 8... Re8 {[%clk 0:02:57.7]} 9. f3 {[%clk 0:02:48.5]} 9... d5 {[%clk
0:02:58.1]} 10. O-O-O {[%clk 0:02:43.6]} 10... d4 {[%clk 0:02:58.5]} 11. Nb5
{[%clk 0:02:21]} 11... Nxe4 {[%clk 0:02:31.4]} 12. N5xd4 {[%clk 0:01:17]} 12...
Nd6 {[%clk 0:02:31.5]} 13. Qd2 {[%clk 0:00:53.9]} 13... Rxe3 {[%clk 0:02:01.9]}
14. Qxe3 {[%clk 0:00:50.8]} 14... Nf5 {[%clk 0:02:01.3]} 15. Qf4 {[%clk
0:00:24.7]} 15... Ncxd4 {[%clk 0:01:38.6]} 16. Nxd4 {[%clk 0:00:16.9]} 16...
Bxd4 {[%clk 0:01:40.5]} 17. c3 {[%clk 0:00:17.6]} 17... Be3+ {[%clk 0:01:40.9]}
18. Qxe3 {[%clk 0:00:17.9]} 18... Qxd1+ {[%clk 0:01:42.4]} 19. Kxd1 {[%clk
0:00:19.8]} 19... Nxe3+ {[%clk 0:01:44]} 20. Ke2 {[%clk 0:00:21.4]} 20... Nxf1
{[%clk 0:01:45.9]} 21. Rxf1 {[%clk 0:00:23]} 21... Be6 {[%clk 0:01:47.6]} 22.
Rd1 {[%clk 0:00:24.2]} 22... Re8 {[%clk 0:01:48.5]} 23. Kd3 {[%clk 0:00:25.4]}
23... Rd8+ {[%clk 0:01:49.2]} 24. Ke2 {[%clk 0:00:26.2]} 0-1

[Event "*** Titled Tuesday Blitz"]
[Site "Chess.com"]
[Date "2018.11.06"]
[Round "2"]
[White "dragosceres"]
[Black "DiogenesSinopeus"]
[Result "0-1"]
[WhiteElo "2405"]
[BlackElo "2427"]
[TimeControl "180+2"]
[EndTime "13:18:32 PST"]
[Termination "DiogenesSinopeus won by resignation"]

1. e4 {[%clk 0:03:00.8]} 1... e5 {[%clk 0:03:00.6]} 2. Nf3 {[%clk 0:03:01.9]}
2... Nc6 {[%clk 0:03:01.9]} 3. Bc4 {[%clk 0:03:03]} 3... Nf6 {[%clk 0:03:02.5]}
4. d3 {[%clk 0:03:03.8]} 4... Be7 {[%clk 0:03:01.8]} 5. O-O {[%clk 0:03:05]}
5... O-O {[%clk 0:03:03]} 6. a4 {[%clk 0:03:05.7]} 6... d6 {[%clk 0:03:03.6]} 7.
c3 {[%clk 0:02:59.3]} 7... Kh8 {[%clk 0:03:01.5]} 8. h3 {[%clk 0:02:57.1]} 8...
Ng8 {[%clk 0:03:02]} 9. d4 {[%clk 0:02:49.8]} 9... f5 {[%clk 0:02:54.2]} 10.
exf5 {[%clk 0:02:38.9]} 10... e4 {[%clk 0:02:46.9]} 11. Nfd2 {[%clk 0:02:37.8]}
11... d5 {[%clk 0:02:44]} 12. Be2 {[%clk 0:02:36.4]} 12... Bxf5 {[%clk
0:02:41.5]} 13. Re1 {[%clk 0:02:36.8]} 13... Bh4 {[%clk 0:02:26.2]} 14. Nf1
{[%clk 0:02:35.4]} 14... Bxh3 {[%clk 0:01:44.7]} 15. gxh3 {[%clk 0:02:35.3]}
15... Bxf2+ {[%clk 0:01:44.7]} 16. Kg2 {[%clk 0:02:29.6]} 16... Qf6 {[%clk
0:01:39.9]} 17. Nh2 {[%clk 0:02:02.2]} 17... Bxe1 {[%clk 0:01:27.6]} 18. Qxe1
{[%clk 0:02:01.8]} 18... Nh6 {[%clk 0:01:26]} 19. Bxh6 {[%clk 0:01:45.4]} 19...
Qxh6 {[%clk 0:01:25.2]} 20. Ng4 {[%clk 0:01:44]} 20... Qf4 {[%clk 0:01:23.1]}
21. Qg3 {[%clk 0:01:39.7]} 21... Qc1 {[%clk 0:01:15.5]} 22. c4 {[%clk
0:00:53.7]} 22... Qxb2 {[%clk 0:01:13.1]} 23. Qc3 {[%clk 0:00:54.5]} 23... Qxe2+
{[%clk 0:01:13.2]} 0-1

[Event "*** Titled Tuesday Blitz"]
[Site "Chess.com"]
[Date "2018.11.06"]
[Round "2"]
[White "burbur555"]
[Black "dretch"]
[Result "0-1"]
[WhiteElo "2530"]
[BlackElo "2780"]
[TimeControl "180+2"]
[EndTime "13:18:45 PST"]
[Termination "dretch won by resignation"]

1. d4 {[%clk 0:03:01.9]} 1... d5 {[%clk 0:02:57.6]} 2. Nf3 {[%clk 0:03:02.7]}
2... Nf6 {[%clk 0:02:58.4]} 3. g3 {[%clk 0:03:03.2]} 3... Bf5 {[%clk 0:02:56.8]}
4. c4 {[%clk 0:03:02.9]} 4... c6 {[%clk 0:02:54.4]} 5. Nc3 {[%clk 0:03:02.6]}
5... dxc4 {[%clk 0:02:51.3]} 6. Bg2 {[%clk 0:03:02.3]} 6... g6 {[%clk
0:02:46.1]} 7. Ne5 {[%clk 0:03:00.8]} 7... Be6 {[%clk 0:02:45.1]} 8. O-O {[%clk
0:02:55.1]} 8... Bg7 {[%clk 0:02:46.2]} 9. e3 {[%clk 0:02:55.7]} 9... Nbd7
{[%clk 0:02:40]} 10. f4 {[%clk 0:02:54.2]} 10... O-O {[%clk 0:02:37.8]} 11. Qe2
{[%clk 0:02:54.7]} 11... Nxe5 {[%clk 0:02:36]} 12. fxe5 {[%clk 0:02:55.2]} 12...
Nd5 {[%clk 0:02:34]} 13. e4 {[%clk 0:02:55.6]} 13... Nb4 {[%clk 0:02:32.6]} 14.
Be3 {[%clk 0:02:54.6]} 14... Qa5 {[%clk 0:02:15.6]} 15. a3 {[%clk 0:02:26.2]}
15... Nd3 {[%clk 0:02:15.1]} 16. b4 {[%clk 0:02:26.6]} 16... Qc7 {[%clk
0:02:11.2]} 17. Rad1 {[%clk 0:02:15.7]} 17... b5 {[%clk 0:02:08.9]} 18. Qc2
{[%clk 0:02:12]} 18... a5 {[%clk 0:02:08]} 19. d5 {[%clk 0:02:12.6]} 19... Qxe5
{[%clk 0:01:56.5]} 20. Ne2 {[%clk 0:02:04.5]} 20... cxd5 {[%clk 0:01:34.2]} 21.
Bd4 {[%clk 0:02:04.6]} 21... Qg5 {[%clk 0:01:33.4]} 22. Bxg7 {[%clk 0:02:00.1]}
22... Kxg7 {[%clk 0:01:30.8]} 23. Nf4 {[%clk 0:01:51.7]} 23... dxe4 {[%clk
0:01:20.7]} 24. Bxe4 {[%clk 0:01:40.8]} 24... Nxf4 {[%clk 0:01:18.6]} 25. Rxf4
{[%clk 0:01:40.6]} 25... Rad8 {[%clk 0:01:17.3]} 26. Rxd8 {[%clk 0:01:32.7]}
26... Rxd8 {[%clk 0:01:17.6]} 27. Qc3+ {[%clk 0:01:33.6]} 27... Kg8 {[%clk
0:01:14.7]} 28. bxa5 {[%clk 0:01:33.9]} 28... Rd1+ {[%clk 0:01:10.9]} 29. Rf1
{[%clk 0:01:33.4]} 29... Qc5+ {[%clk 0:01:10]} 30. Kg2 {[%clk 0:01:32.6]} 30...
Bh3+ {[%clk 0:01:00.5]} 31. Kxh3 {[%clk 0:01:33.1]} 31... Rxf1 {[%clk
0:01:01.8]} 32. a6 {[%clk 0:01:33.3]} 32... Qh5+ {[%clk 0:00:59.1]} 33. Kg2
{[%clk 0:01:33.4]} 33... Qe2+ {[%clk 0:00:59.9]} 0-1

[Event "*** Titled Tuesday Blitz"]
[Site "Chess.com"]
[Date "2018.11.06"]
[Round "2"]
[White "Caterpiller35"]
[Black "1random"]
[Result "0-1"]
[WhiteElo "2273"]
[BlackElo "2468"]
[TimeControl "180+2"]
[EndTime "13:18:58 PST"]
[Termination "1random won by checkmate"]

1. d4 {[%clk 0:03:01.9]} 1... Nf6 {[%clk 0:03:00.9]} 2. Bg5 {[%clk 0:03:00.9]}
2... c5 {[%clk 0:03:01]} 3. d5 {[%clk 0:02:58]} 3... Ne4 {[%clk 0:03:01]} 4. Bf4
{[%clk 0:02:55.2]} 4... Qb6 {[%clk 0:02:59]} 5. Qc1 {[%clk 0:02:26.3]} 5... e6
{[%clk 0:02:41]} 6. f3 {[%clk 0:02:25.2]} 6... Qa5+ {[%clk 0:02:41.4]} 7. c3
{[%clk 0:02:20.5]} 7... Nf6 {[%clk 0:02:41.6]} 8. dxe6 {[%clk 0:02:18.6]} 8...
fxe6 {[%clk 0:02:27.4]} 9. e4 {[%clk 0:02:19.2]} 9... d5 {[%clk 0:02:28.6]} 10.
e5 {[%clk 0:02:13.9]} 10... Nfd7 {[%clk 0:02:27.4]} 11. Bd3 {[%clk 0:02:10.8]}
11... Nc6 {[%clk 0:02:25.2]} 12. Bg3 {[%clk 0:02:10.6]} 12... Ndxe5 {[%clk
0:02:17.3]} 13. Bc2 {[%clk 0:02:03.8]} 13... Be7 {[%clk 0:02:12.8]} 14. Qe3
{[%clk 0:02:00.3]} 14... Nd4 {[%clk 0:01:26.7]} 15. Qxe5 {[%clk 0:01:39.7]}
15... Nxc2+ {[%clk 0:01:26.7]} 16. Kd1 {[%clk 0:01:40.8]} 16... Nxa1 {[%clk
0:01:24]} 17. Qxg7 {[%clk 0:01:41.7]} 17... Rf8 {[%clk 0:01:19.3]} 18. Qxh7
{[%clk 0:01:42.3]} 18... Qxa2 {[%clk 0:01:07.8]} 19. Qg6+ {[%clk 0:01:40.8]}
19... Rf7 {[%clk 0:01:05.6]} 20. Ne2 {[%clk 0:01:37.9]} 20... Qb3+ {[%clk
0:01:02]} 21. Kc1 {[%clk 0:01:38]} 21... e5 {[%clk 0:00:51.8]} 22. Nd2 {[%clk
0:01:18.4]} 22... Qa4 {[%clk 0:00:29.7]} 23. Bxe5 {[%clk 0:01:18.1]} 23... Bf5
{[%clk 0:00:28.6]} 24. Qg8+ {[%clk 0:01:18.4]} 24... Rf8 {[%clk 0:00:27.3]} 25.
Qxd5 {[%clk 0:01:19.2]} 25... Qc2# {[%clk 0:00:27.8]} 0-1

[Event "*** Titled Tuesday Blitz"]
[Site "Chess.com"]
[Date "2018.11.06"]
[Round "2"]
[White "ChainsOfFantasia"]
[Black "sergoy"]
[Result "0-1"]
[WhiteElo "2338"]
[BlackElo "2749"]
[TimeControl "180+2"]
[EndTime "13:19:09 PST"]
[Termination "sergoy won by checkmate"]

1. d4 {[%clk 0:03:01.9]} 1... Nf6 {[%clk 0:03:00.5]} 2. c4 {[%clk 0:03:01.9]}
2... e6 {[%clk 0:03:01.7]} 3. Nf3 {[%clk 0:03:01.9]} 3... b6 {[%clk 0:03:02.4]}
4. a3 {[%clk 0:03:01.2]} 4... Ba6 {[%clk 0:03:01.6]} 5. Qc2 {[%clk 0:03:01.1]}
5... Bb7 {[%clk 0:03:03]} 6. Nc3 {[%clk 0:02:58.6]} 6... c5 {[%clk 0:03:04.4]}
7. e4 {[%clk 0:02:55.8]} 7... cxd4 {[%clk 0:03:05.2]} 8. Nxd4 {[%clk 0:02:57.7]}
8... Bc5 {[%clk 0:03:06.2]} 9. Nb3 {[%clk 0:02:57.8]} 9... Nc6 {[%clk
0:03:07.6]} 10. Qe2 {[%clk 0:02:48.4]} 10... d6 {[%clk 0:03:04]} 11. Be3 {[%clk
0:02:40.8]} 11... O-O {[%clk 0:03:00.8]} 12. g3 {[%clk 0:02:36.6]} 12... Rc8
{[%clk 0:02:47.5]} 13. Nxc5 {[%clk 0:02:28.2]} 13... bxc5 {[%clk 0:02:48.4]} 14.
Rd1 {[%clk 0:02:27.7]} 14... e5 {[%clk 0:02:49.3]} 15. Bh3 {[%clk 0:02:19.8]}
15... Rb8 {[%clk 0:02:48.6]} 16. O-O {[%clk 0:02:16.4]} 16... Nd4 {[%clk
0:02:49.4]} 17. Bxd4 {[%clk 0:02:13.4]} 17... cxd4 {[%clk 0:02:49.9]} 18. Nd5
{[%clk 0:02:08.4]} 18... Bxd5 {[%clk 0:02:49.9]} 19. exd5 {[%clk 0:02:02.4]}
19... a5 {[%clk 0:02:50]} 20. Qc2 {[%clk 0:01:55.2]} 20... Qb6 {[%clk
0:02:48.4]} 21. Rb1 {[%clk 0:01:54.6]} 21... e4 {[%clk 0:02:47.7]} 22. b4 {[%clk
0:01:54.1]} 22... d3 {[%clk 0:02:48.6]} 23. Qc3 {[%clk 0:01:53.5]} 23... Rfe8
{[%clk 0:02:41.5]} 24. Bg2 {[%clk 0:01:31.6]} 24... h6 {[%clk 0:02:40]} 25. h3
{[%clk 0:01:30]} 25... Rec8 {[%clk 0:02:34.5]} 26. bxa5 {[%clk 0:01:30.2]} 26...
Qxb1 {[%clk 0:02:25.5]} 27. Rxb1 {[%clk 0:01:32.1]} 27... Rxb1+ {[%clk 0:02:25]}
28. Kh2 {[%clk 0:01:33.4]} 28... Rd1 {[%clk 0:02:05.5]} 29. a6 {[%clk 0:01:08]}
29... Ra8 {[%clk 0:02:04]} 30. Qb3 {[%clk 0:01:08.7]} 30... Ra1 {[%clk
0:01:48.3]} 31. Qb7 {[%clk 0:01:08.1]} 31... d2 {[%clk 0:01:41.9]} 32. Qxa8+
{[%clk 0:01:07.3]} 32... Kh7 {[%clk 0:01:42.3]} 33. Qc8 {[%clk 0:01:04.4]} 33...
d1=Q {[%clk 0:01:38.2]} 34. Qf5+ {[%clk 0:01:05]} 34... g6 {[%clk 0:01:38.6]}
35. Qxf6 {[%clk 0:00:56.9]} 35... Qg1# {[%clk 0:01:38.1]} 0-1